bitfinex-derivatives/quotes_BTCF0:USTF0_20250812
["timestamp","ask_amount","ask_price","bid_price","bid_amount"]
[1755034038444,1.14830178,120170.0,120160.0,0.9459535]
[1755034038840,0.6910265,120170.0,120160.0,0.9459535]
[1755034039046,1.13830178,120170.0,120160.0,0.9459535]
[1755034039645,0.6810265,120170.0,120160.0,0.9459535]
[1755034039846,1.13830178,120170.0,120160.0,0.9459535]
[1755034040642,1.15677955,120170.0,120160.0,0.9459535]
[1755034041041,1.15677955,120170.0,120160.0,0.9213735]
[1755034041749,0.69950427,120170.0,120160.0,0.9213735]
[1755034041955,1.15677955,120170.0,120160.0,0.9213735]
[1755034042246,1.15677955,120170.0,120160.0,0.002]
[1755034042446,1.61405483,120170.0,120160.0,0.002]
[1755034042651,1.15677955,120170.0,120160.0,0.002]
[1755034043741,1.24100015,120170.0,120150.0,0.09718]
[1755034043948,0.2002335,120160.0,120150.0,0.19425]
[1755034044246,0.65750878,120160.0,120150.0,0.19425]
[1755034044650,1.01830878,120160.0,120150.0,0.19425]
[1755034046151,0.65750878,120160.0,120150.0,0.19425]
[1755034046747,0.65750878,120160.0,120150.0,0.19525]
[1755034046951,0.65750878,120160.0,120150.0,0.19625]
[1755034047654,0.2002335,120160.0,120150.0,0.19625]
[1755034047856,0.65750878,120160.0,120150.0,0.19625]
[1755034048054,1.01830878,120160.0,120150.0,0.19625]
[1755034049656,1.01830878,120160.0,120150.0,0.11302]
[1755034049855,1.01830878,120160.0,120150.0,0.1723604]
[1755034050158,0.65750878,120160.0,120150.0,0.1723604]
[1755034050559,0.65750878,120160.0,120150.0,0.9480004]
[1755034050753,1.01830878,120160.0,120150.0,0.9480004]
[1755034051058,0.65750878,120160.0,120150.0,0.9480004]
[1755034051756,1.01830878,120160.0,120150.0,0.9707604]
[1755034052054,1.01830878,120160.0,120150.0,0.9706804]
[1755034052256,0.65750878,120160.0,120150.0,0.9706804]
[1755034052452,0.65750878,120160.0,120150.0,0.1951204]
[1755034052646,1.01830878,120160.0,120150.0,0.9706404]
[1755034053656,1.01830878,120160.0,120150.0,0.1951204]
[1755034053858,1.12830878,120160.0,120150.0,0.9704804]
[1755034054861,1.12830878,120160.0,120150.0,0.1951204]
[1755034055062,1.12830878,120160.0,120150.0,0.9700004]
[1755034055461,1.14830878,120160.0,120150.0,0.9700004]
[1755034056257,1.14830878,120160.0,120150.0,0.88677]
[1755034056559,1.14830878,120160.0,120150.0,0.9697605]
[1755034056759,1.14830878,120160.0,120150.0,0.88653]
[1755034057156,1.14830878,120160.0,120150.0,0.9697605]
[1755034060257,1.12830878,120160.0,120150.0,0.9697605]
[1755034061358,1.12830878,120160.0,120150.0,0.9690805]
[1755034062159,0.76750878,120160.0,120150.0,0.9690805]
[1755034062859,0.76750878,120160.0,120150.0,0.1951205]
[1755034063365,0.76750878,120160.0,120150.0,0.9689205]
[1755034063664,0.76750878,120160.0,120150.0,0.1951205]
[1755034063865,0.76750878,120160.0,120150.0,0.9688805]
[1755034064564,0.76750878,120160.0,120150.0,0.9688005]
[1755034064760,0.82472163,120160.0,120150.0,0.9688005]
[1755034065763,0.71472163,120160.0,120150.0,0.9688005]
[1755034066064,0.82472163,120160.0,120150.0,0.1951205]
[1755034066367,0.82472163,120160.0,120150.0,0.9688005]
[1755034067371,0.82472163,120160.0,120150.0,0.9460405]
[1755034067559,1.33920976,120160.0,120150.0,0.02798]
[1755034067760,1.33920976,120160.0,120150.0,0.8589104]
[1755034067961,1.33920976,120160.0,120150.0,0.9075704]
[1755034068162,1.33920976,120160.0,120150.0,0.9239404]
[1755034068567,1.33920976,120160.0,120150.0,0.9464304]
[1755034069168,1.33920976,120160.0,120150.0,0.9464305]
[1755034069763,1.33920976,120160.0,120150.0,0.8632]
[1755034069968,1.22920976,120160.0,120150.0,0.1727505]
[1755034070168,1.32920976,120160.0,120150.0,0.9464305]
[1755034071170,1.22920976,120160.0,120150.0,0.9464305]
[1755034071370,1.31920976,120160.0,120150.0,0.9464305]
[1755034071572,0.2002335,120160.0,120150.0,0.9464305]
[1755034071767,0.71472163,120160.0,120150.0,0.9464305]
[1755034071968,0.71472163,120160.0,120150.0,0.9691905]
[1755034072273,0.71472163,120160.0,120150.0,0.88596]
[1755034072571,1.22920976,120160.0,120150.0,0.88596]
[1755034072765,0.83472163,120160.0,120150.0,0.88596]
[1755034072969,0.83472163,120160.0,120150.0,0.9691905]
[1755034074465,0.82472163,120160.0,120150.0,0.9691905]
[1755034074965,0.2002335,120160.0,120150.0,0.9691905]
[1755034075171,0.71472163,120160.0,120150.0,0.9691905]
[1755034077176,0.2002335,120160.0,120150.0,0.9691905]
[1755034077477,0.71472163,120160.0,120150.0,0.9691905]
[1755034085380,0.70071163,120160.0,120150.0,0.9691905]
[1755034085580,0.71430163,120160.0,120150.0,0.9691905]
[1755034088482,0.59771163,120160.0,120150.0,1.3299905]
[1755034089284,0.62198163,120160.0,120150.0,1.3299905]
[1755034089483,0.62198163,120160.0,120150.0,1.32989806]
[1755034090380,0.65675163,120160.0,120150.0,1.32989806]
[1755034091081,0.1422635,120160.0,120150.0,1.32989806]
[1755034091284,0.62198163,120160.0,120150.0,1.84438619]
[1755034093080,0.62198163,120160.0,120150.0,1.32989806]
[1755034094886,0.65675163,120160.0,120150.0,1.32989806]
[1755034095887,0.69477163,120160.0,120150.0,1.32989806]
[1755034096688,0.71738163,120160.0,120150.0,1.32989806]
[1755034098188,0.62198163,120160.0,120150.0,1.32989806]
[1755034098486,0.65675163,120160.0,120150.0,1.32989806]
[1755034098787,0.69477163,120160.0,120150.0,1.32989806]
[1755034104296,0.70379163,120160.0,120150.0,1.32989806]
[1755034104496,0.71738163,120160.0,120150.0,1.32989806]
[1755034108798,0.2028935,120160.0,120150.0,1.32989806]
[1755034108993,0.71738163,120160.0,120150.0,1.32989806]
[1755034112292,0.2028935,120160.0,120150.0,1.32989806]
[1755034112494,0.71738163,120160.0,120150.0,1.84438619]
[1755034112800,0.2028935,120160.0,120150.0,1.32989806]
[1755034113002,0.70379163,120160.0,120150.0,1.84438619]
[1755034113702,0.70379153,120160.0,120150.0,1.84438619]
[1755034115302,0.1893034,120160.0,120150.0,1.84438619]
[1755034115490,0.70379153,120160.0,120150.0,1.84438619]
[1755034117301,0.1893034,120160.0,120150.0,1.84438619]
[1755034117496,0.70379153,120160.0,120150.0,1.84438619]
[1755034118105,0.1893034,120160.0,120150.0,1.84438619]
[1755034118405,0.70379153,120160.0,120150.0,1.84438619]
[1755034120110,0.70379153,120160.0,120150.0,1.32989806]
[1755034120297,0.1893034,120160.0,120150.0,1.32989806]
[1755034120503,0.70379153,120160.0,120150.0,1.84438619]
[1755034120703,0.66902153,120160.0,120150.0,1.84438619]
[1755034121707,0.70259153,120160.0,120150.0,1.84438619]
[1755034121906,0.70259153,120160.0,120150.0,1.32989806]
[1755034122107,0.70259153,120160.0,120150.0,1.84438619]
[1755034122300,0.70259153,120160.0,120150.0,1.32989806]
[1755034122513,0.70259153,120160.0,120150.0,1.84438619]
[1755034123010,0.70259153,120160.0,120150.0,1.32989806]
[1755034124408,0.70259153,120160.0,120150.0,1.84438619]
[1755034124608,0.70259153,120160.0,120150.0,1.32989806]
[1755034125406,0.70259153,120160.0,120150.0,1.84438619]
[1755034127813,0.70259153,120160.0,120150.0,1.32989806]
[1755034128015,0.70259153,120160.0,120150.0,1.84438619]
[1755034128707,0.71650153,120160.0,120150.0,1.32989806]
[1755034130517,0.70259153,120160.0,120150.0,1.32989806]
[1755034132908,0.70259153,120160.0,120150.0,1.84438619]
[1755034133714,0.70259153,120160.0,120150.0,1.32989806]
[1755034135715,0.71650153,120160.0,120150.0,1.32989806]
[1755034138024,0.2496594,120170.0,120160.0,0.1833534]
[1755034138222,0.88388753,120170.0,120160.0,0.5540934]
[1755034139632,0.88488753,120170.0,120160.0,0.5540934]
[1755034140821,0.88388753,120170.0,120160.0,0.5580934]
[1755034141330,0.88388753,120170.0,120160.0,0.5602534]
[1755034143728,0.88388753,120170.0,120160.0,0.5354334]
[1755034145435,0.88388753,120170.0,120160.0,0.4745234]
[1755034146028,0.88388753,120170.0,120160.0,0.4891434]
[1755034146632,0.88388753,120170.0,120160.0,0.4579634]
[1755034147028,0.88388753,120170.0,120160.0,0.4878534]
[1755034147335,0.88388753,120170.0,120160.0,0.5124334]
[1755034150740,0.3693994,120170.0,120160.0,0.5124334]
[1755034150940,0.88388753,120170.0,120160.0,0.5124334]
[1755034151243,0.88388753,120170.0,120160.0,0.4732334]
[1755034151740,1.00388753,120170.0,120160.0,0.4732334]
[1755034154331,1.00388753,120170.0,120160.0,0.5124334]
[1755034155235,1.00388753,120170.0,120160.0,0.5336034]
[1755034156333,1.00388753,120170.0,120160.0,0.1728034]
[1755034157137,1.00388753,120170.0,120160.0,0.1976234]
[1755034157736,0.88388753,120170.0,120160.0,0.1976234]
[1755034159943,0.88388753,120170.0,120160.0,0.1728034]
[1755034160946,0.88388753,120170.0,120160.0,0.1976234]
[1755034162547,0.88388753,120170.0,120160.0,0.5584234]
[1755034168642,0.88388753,120170.0,120160.0,0.5336034]
[1755034168843,1.01388753,120170.0,120160.0,0.5336034]
[1755034170151,1.01388753,120170.0,120160.0,0.4878534]
[1755034170347,1.01388753,120170.0,120160.0,0.4480234]
[1755034172053,1.01388753,120170.0,120160.0,0.4571434]
[1755034172752,1.01388753,120170.0,120160.0,0.4870434]
[1755034174852,1.01388753,120170.0,120160.0,0.5116234]
[1755034178155,0.88388753,120170.0,120160.0,0.5116234]
[1755034180954,0.88388753,120170.0,120160.0,0.5342134]
[1755034182948,1.00388753,120170.0,120160.0,0.5342134]
[1755034183150,1.00388753,120170.0,120160.0,0.4870434]
[1755034183758,1.00388753,120170.0,120160.0,0.4733834]
[1755034184858,0.4893994,120170.0,120160.0,0.4733834]
[1755034185053,1.00388753,120170.0,120160.0,0.4733834]
[1755034187161,1.00388753,120170.0,120160.0,0.1125834]
[1755034188062,1.00388753,120170.0,120160.0,0.0963434]
[1755034189661,1.00388753,120170.0,120160.0,0.1100034]
[1755034189862,0.88388753,120170.0,120160.0,0.1100034]
[1755034190062,0.88388753,120170.0,120160.0,0.0963434]
[1755034190258,1.00388753,120170.0,120160.0,0.0963434]
[1755034192561,0.4893994,120170.0,120160.0,0.0963434]
[1755034192762,1.00388753,120170.0,120160.0,0.0963434]
[1755034194057,1.00388753,120170.0,120160.0,0.1100034]
[1755034194257,1.00388753,120170.0,120160.0,0.1508234]
[1755034195265,0.88388753,120170.0,120160.0,0.1508234]
[1755034196952,0.88388753,120170.0,120160.0,0.1262434]
[1755034197458,0.88388753,120170.0,120160.0,0.1508234]
[1755034198361,0.3693994,120170.0,120160.0,0.1125834]
[1755034198561,0.88388753,120170.0,120160.0,0.1262434]
[1755034199968,0.88388753,120170.0,120160.0,0.04302]
[1755034200164,0.99388753,120170.0,120160.0,0.004]
[1755034200355,0.4793994,120170.0,120160.0,0.004]
[1755034200565,1.76816753,120170.0,120160.0,0.004]
[1755034201668,1.2536794,120170.0,120160.0,0.004]
[1755034201868,1.76816753,120170.0,120160.0,0.004]
[1755034202372,0.99388753,120170.0,120160.0,0.004]
[1755034204674,0.92388753,120170.0,120160.0,0.004]
[1755034207476,0.4093994,120170.0,120160.0,0.004]
[1755034207672,0.92388753,120170.0,120160.0,0.004]
[1755034209081,0.92388753,120170.0,120160.0,0.0872234]
[1755034209678,0.92388753,120170.0,120160.0,0.004]
[1755034210173,0.92388753,120170.0,120160.0,0.0872235]
[1755034212386,0.4093994,120170.0,120160.0,0.0872235]
[1755034212587,0.92388753,120170.0,120160.0,0.0872235]
[1755034214888,0.4093994,120170.0,120160.0,0.0872235]
[1755034215079,0.92388753,120170.0,120160.0,0.0872235]
[1755034216687,0.88388753,120170.0,120160.0,0.0872235]
[1755034216988,0.98388753,120170.0,120160.0,0.0872235]
[1755034217587,0.88388753,120170.0,120160.0,0.0872235]
[1755034217787,0.99388753,120170.0,120160.0,0.0872235]
[1755034225479,0.88388753,120170.0,120160.0,0.0872235]
[1755034225683,0.99388753,120170.0,120160.0,0.0872235]
[1755034227893,0.88388753,120170.0,120160.0,0.0872235]
[1755034229191,0.88388753,120170.0,120160.0,0.0962335]
[1755034232897,0.99388753,120170.0,120160.0,0.0962335]
[1755034233087,0.88388753,120170.0,120160.0,0.0962335]
[1755034233382,0.97388753,120170.0,120160.0,0.0962335]
[1755034234389,0.97388753,120170.0,120160.0,0.004]
[1755034235594,0.97388753,120170.0,120160.0,0.0872234]
[1755034235900,0.97388753,120170.0,120160.0,0.004]
[1755034237296,0.4593994,120170.0,120160.0,0.004]
[1755034237498,0.97388753,120170.0,120160.0,0.004]
[1755034237796,0.97388753,120170.0,120160.0,0.0872234]
[1755034237996,0.97388753,120170.0,120160.0,0.004]
[1755034239298,1.33468753,120170.0,120160.0,0.004]
[1755034239986,0.97388753,120170.0,120160.0,0.004]
[1755034240190,1.33468753,120170.0,120160.0,0.004]
[1755034243901,1.84917566,120170.0,120160.0,0.004]
[1755034246593,1.84917566,120170.0,120150.0,0.774]
[1755034246594,1.86039886,120170.0,120150.0,0.774]
[1755034246800,1.59281966,120160.0,120150.0,0.774]
[1755034247000,1.71281966,120160.0,120150.0,0.774]
[1755034247198,0.2030503,120150.0,120140.0,1.48095373]
[1755034247405,1.34202656,120150.0,120140.0,1.48095373]
[1755034247705,1.23202656,120150.0,120140.0,1.48095373]
[1755034247901,1.23202656,120150.0,120140.0,1.39771773]
[1755034248101,1.23202656,120150.0,120140.0,0.97645313]
[1755034248505,0.2030503,120150.0,120140.0,0.97645313]
[1755034248705,1.23202656,120150.0,120140.0,0.97645313]
[1755034248907,1.23202656,120150.0,120140.0,0.20245313]
[1755034249106,0.2030503,120150.0,120140.0,0.97645313]
[1755034249300,0.71753843,120150.0,120140.0,0.97645313]
[1755034249500,1.23202656,120150.0,120140.0,0.97645313]
[1755034250108,0.2030503,120150.0,120140.0,0.97645313]
[1755034250308,0.2940503,120150.0,120140.0,0.97645313]
[1755034250508,1.32302656,120150.0,120140.0,0.97645313]
[1755034251096,1.23302656,120150.0,120140.0,0.97645313]
[1755034252304,0.2040503,120150.0,120140.0,0.97645313]
[1755034252505,1.23302656,120150.0,120140.0,0.97645313]
[1755034252705,1.33302656,120150.0,120140.0,0.97645313]
[1755034253112,1.23302656,120150.0,120140.0,0.97645313]
[1755034254012,1.23302656,120150.0,120140.0,1.33725313]
[1755034255012,1.23302656,120150.0,120140.0,0.97645313]
[1755034255811,0.2040503,120150.0,120140.0,0.97645313]
[1755034256012,1.23302656,120150.0,120140.0,0.97645313]
[1755034258413,1.23302656,120150.0,120140.0,1.33725313]
[1755034259406,1.23302656,120150.0,120140.0,1.25124313]
[1755034259607,1.36302656,120150.0,120140.0,0.774]
[1755034261114,1.72382656,120150.0,120140.0,0.774]
[1755034261615,1.36302656,120150.0,120140.0,0.774]
[1755034261809,1.72382656,120150.0,120140.0,0.80003]
[1755034262009,1.72382656,120150.0,120140.0,0.83918]
[1755034262210,1.72382656,120150.0,120140.0,0.86243]
[1755034262516,1.72382656,120150.0,120140.0,0.06518]
[1755034265218,1.72382656,120150.0,120140.0,0.0406]
[1755034265810,0.6948503,120150.0,120140.0,0.0406]
[1755034266115,1.72382656,120150.0,120140.0,0.0406]
[1755034268906,1.72382656,120150.0,120140.0,0.02603]
[1755034269112,1.72382656,120150.0,120140.0,0.00995]
[1755034269712,1.36302656,120150.0,120140.0,0.00995]
[1755034270719,0.3340503,120150.0,120140.0,0.00995]
[1755034270906,0.2017373,120140.0,120120.0,0.3608]
[1755034271107,0.2017512,120120.0,120110.0,0.53620732]
[1755034271313,1.35072746,120120.0,120110.0,0.63403542]
[1755034271621,1.36901191,120120.0,120110.0,0.47038]
[1755034272116,0.201758,120110.0,120100.0,0.37075]
[1755034272326,1.66665192,120110.0,120100.0,0.38532]
[1755034272823,1.66665192,120110.0,120100.0,0.02452]
[1755034274118,1.66665192,120110.0,120100.0,0.00995]
[1755034275118,2.02745192,120110.0,120100.0,0.01195]
[1755034275318,2.02745192,120110.0,120100.0,0.005]
[1755034275319,2.18114005,120110.0,120100.0,0.005]
[1755034275521,2.54194005,120110.0,120100.0,0.005]
[1755034277523,1.51296379,120110.0,120100.0,0.005]
[1755034277723,2.54194005,120110.0,120100.0,0.005]
[1755034278916,2.54194005,120110.0,120080.0,0.1077949]
[1755034278917,0.2017718,120090.0,120080.0,0.1077949]
[1755034279116,2.00562806,120090.0,120080.0,0.0406]
[1755034279325,0.2017787,120080.0,120070.0,0.72846]
[1755034279522,0.71626683,120080.0,120070.0,0.7202272]
[1755034279911,0.71626683,120080.0,120070.0,0.5092657]
[1755034280212,0.71626683,120080.0,120070.0,0.4846857]
[1755034280418,0.2017787,120080.0,120070.0,0.49292532]
[1755034280615,0.71626683,120080.0,120070.0,0.49292532]
[1755034280921,0.71626683,120080.0,120070.0,0.49692532]
[1755034281112,0.2017787,120080.0,120070.0,0.05283962]
[1755034281322,0.2017787,120080.0,120070.0,0.16070532]
[1755034281622,0.71626683,120080.0,120070.0,0.16070532]
[1755034281926,0.2017787,120080.0,120070.0,0.16570532]
[1755034282117,0.71626683,120080.0,120070.0,0.04326962]
[1755034282317,0.6325787,120080.0,120070.0,0.009]
[1755034282822,1.54865806,120080.0,120070.0,0.009]
[1755034283223,1.55705628,120080.0,120070.0,0.009]
[1755034283618,0.64097692,120080.0,120070.0,0.005]
[1755034283819,1.55705628,120080.0,120070.0,0.006]
[1755034284020,0.64097692,120080.0,120070.0,0.006]
[1755034284222,1.55705628,120080.0,120070.0,0.002]
[1755034284422,0.64097692,120080.0,120070.0,0.002]
[1755034284623,1.55705628,120080.0,120070.0,0.002]
[1755034285422,0.64097692,120080.0,120070.0,0.002]
[1755034285626,1.55705628,120080.0,120070.0,0.002]
[1755034285828,0.2017926,120060.0,120050.0,0.10958]
[1755034286021,0.77983228,120060.0,120050.0,0.10958]
[1755034286216,0.65983228,120060.0,120050.0,0.10958]
[1755034286421,0.77983228,120060.0,120050.0,0.10958]
[1755034286618,0.33999203,120060.0,120050.0,0.10958]
[1755034286824,1.15883171,120060.0,120050.0,0.10958]
[1755034287020,1.15883171,120060.0,120050.0,0.11775168]
[1755034287527,0.67803171,120060.0,120050.0,0.11975168]
[1755034287724,0.21999203,120060.0,120050.0,0.11975168]
[1755034287927,0.79803171,120060.0,120050.0,0.11975168]
[1755034288524,0.79803171,120060.0,120050.0,0.11458]
[1755034288525,0.21999203,120060.0,120050.0,0.11458]
[1755034288826,1.14883171,120060.0,120050.0,0.03103]
[1755034289023,1.96111171,120060.0,120050.0,0.03103]
[1755034289627,1.96111171,120060.0,120050.0,0.04541]
[1755034289816,1.03883171,120060.0,120050.0,0.005]
[1755034290022,0.58079203,120060.0,120050.0,0.005]
[1755034290321,1.16883171,120060.0,120050.0,0.005]
[1755034290521,1.16883171,120060.0,120050.0,0.01485]
[1755034291719,1.16883171,120060.0,120050.0,0.005]
[1755034292325,0.71079203,120060.0,120050.0,0.005]
[1755034292527,1.16883171,120060.0,120050.0,0.005]
[1755034292924,0.58079203,120060.0,120050.0,0.005]
[1755034293119,1.14883171,120060.0,120050.0,0.005]
[1755034294833,0.58079203,120060.0,120050.0,0.005]
[1755034295033,1.12883171,120060.0,120050.0,0.005]
[1755034298335,0.67079203,120060.0,120050.0,0.005]
[1755034298636,1.12883171,120060.0,120050.0,0.005]
[1755034299433,1.12883171,120060.0,120050.0,0.0882994]
[1755034299930,0.67079203,120060.0,120050.0,0.0882994]
[1755034300130,0.58079203,120060.0,120050.0,0.1367794]
[1755034300337,0.58079203,120060.0,120050.0,0.1999194]
[1755034300637,1.15883171,120060.0,120050.0,0.1757394]
[1755034300829,1.15883171,120060.0,120050.0,0.1290994]
[1755034301030,0.58079203,120060.0,120050.0,0.1290994]
[1755034301340,0.58079203,120060.0,120050.0,0.1147194]
[1755034301730,1.14883171,120060.0,120050.0,0.1147194]
[1755034303842,1.14883171,120060.0,120050.0,0.1290994]
[1755034304140,0.24669943,120060.0,120050.0,0.1536794]
[1755034304339,0.70473911,120060.0,120050.0,0.1536794]
[1755034304836,0.78803151,120060.0,120050.0,0.1536794]
[1755034305039,0.78803151,120060.0,120050.0,0.5607194]
[1755034305040,0.13669943,120060.0,120050.0,0.5607194]
[1755034305234,0.18669943,120060.0,120050.0,0.5607194]
[1755034305428,0.59473911,120060.0,120050.0,0.5607194]
[1755034305638,0.65473911,120060.0,120050.0,0.5607194]
[1755034306035,0.59473911,120060.0,120050.0,0.5607194]
[1755034306238,0.13669943,120060.0,120050.0,0.5607194]
[1755034306443,0.59473911,120060.0,120050.0,0.5607194]
[1755034306937,0.65473911,120060.0,120050.0,0.5607194]
[1755034307141,0.19669943,120060.0,120050.0,0.5607194]
[1755034307344,0.59473911,120060.0,120050.0,0.5607194]
[1755034307845,0.65473911,120060.0,120050.0,0.5607194]
[1755034308040,0.59473911,120060.0,120050.0,0.5607194]
[1755034308342,0.67803161,120060.0,120050.0,0.5607194]
[1755034308542,0.59473911,120060.0,120050.0,0.5607194]
[1755034308734,0.65473911,120060.0,120050.0,0.5607194]
[1755034309337,0.19669943,120060.0,120050.0,0.5607194]
[1755034309544,0.73803161,120060.0,120050.0,0.1999194]
[1755034309840,0.73803161,120060.0,120050.0,0.5607194]
[1755034310341,0.27999193,120060.0,120050.0,0.5607194]
[1755034310537,0.73803161,120060.0,120050.0,0.5607194]
[1755034310734,0.27999193,120060.0,120050.0,0.5607194]
[1755034311137,0.73803161,120060.0,120050.0,0.5607194]
[1755034311839,0.27999193,120060.0,120050.0,0.5607194]
[1755034312050,0.73803161,120060.0,120050.0,0.5607194]
[1755034312341,0.78803161,120060.0,120050.0,0.5607194]
[1755034313138,0.78803161,120060.0,120050.0,0.4755194]
[1755034313745,0.78803161,120060.0,120050.0,0.4898994]
[1755034315046,0.78803161,120060.0,120050.0,0.5144794]
[1755034315541,0.32999193,120060.0,120050.0,0.5144794]
[1755034315849,0.32999193,120060.0,120050.0,0.4898994]
[1755034316146,0.78803161,120060.0,120050.0,0.5144794]
[1755034316547,0.78803161,120060.0,120050.0,0.5386594]
[1755034317448,0.78803161,120060.0,120050.0,0.5144794]
[1755034317650,0.32999193,120060.0,120050.0,0.5144794]
[1755034317947,0.78803161,120060.0,120050.0,0.5144794]
[1755034319053,0.78803161,120060.0,120050.0,0.5365394]
[1755034319854,0.78803161,120060.0,120050.0,0.5602494]
[1755034320242,0.32999193,120060.0,120050.0,0.5602494]
[1755034320542,0.78803161,120060.0,120050.0,0.5602494]
[1755034321451,0.64613218,120060.0,120050.0,0.5602494]
[1755034321751,0.66059218,120060.0,120050.0,0.5602494]
[1755034322553,0.2025525,120060.0,120050.0,0.5602494]
[1755034322739,0.0832925,120060.0,120050.0,0.5602494]
[1755034323049,0.1774724,120060.0,120050.0,0.5602494]
[1755034323352,0.65979208,120060.0,120050.0,0.5602494]
[1755034323756,0.77979208,120060.0,120050.0,0.5602494]
[1755034323944,0.2017524,120060.0,120050.0,0.5602494]
[1755034324146,0.76979208,120060.0,120050.0,0.5602494]
[1755034324452,0.2017524,120060.0,120050.0,0.5602494]
[1755034324648,0.65979208,120060.0,120050.0,0.5602494]
[1755034325242,0.2017524,120060.0,120050.0,0.5602494]
[1755034325440,0.65979208,120060.0,120050.0,0.5602494]
[1755034325644,0.2017524,120060.0,120050.0,0.5602494]
[1755034325853,0.77979208,120060.0,120050.0,0.5602494]
[1755034326050,0.76979208,120060.0,120050.0,0.5602494]
[1755034327552,0.2017524,120060.0,120050.0,0.5602494]
[1755034327850,0.77979208,120060.0,120050.0,0.5602494]
[1755034328053,0.7985556,120060.0,120050.0,0.5602494]
[1755034328655,0.32051592,120060.0,120050.0,0.5602494]
[1755034328955,0.7785556,120060.0,120050.0,0.5602494]
[1755034329752,0.22051592,120060.0,120050.0,0.5602494]
[1755034329948,0.6785556,120060.0,120050.0,0.5602494]
[1755034331057,0.7985556,120060.0,120050.0,0.5602494]
[1755034331258,0.6785556,120060.0,120050.0,0.5602494]
[1755034332558,0.22051592,120060.0,120050.0,0.5602494]
[1755034332750,0.6785556,120060.0,120050.0,0.5602494]
[1755034332947,0.7985556,120060.0,120050.0,0.5602494]
[1755034333458,0.7985556,120060.0,120050.0,0.1994494]
[1755034339468,1.1593556,120060.0,120050.0,0.1994494]
[1755034340064,1.1593556,120060.0,120050.0,0.0974794]
[1755034340768,0.70131592,120060.0,120050.0,0.0974794]
[1755034341065,1.1593556,120060.0,120050.0,0.1135294]
[1755034341266,1.1593556,120060.0,120050.0,0.1519894]
[1755034343764,1.1593556,120060.0,120050.0,0.1274094]
[1755034345071,1.1593556,120060.0,120050.0,0.0974794]
[1755034346271,0.70131592,120060.0,120050.0,0.0974794]
[1755034346670,1.73200002,120060.0,120050.0,0.0974794]
[1755034348374,0.70131592,120060.0,120050.0,0.0974794]
[1755034348768,1.73200002,120060.0,120050.0,0.0974794]
[1755034350869,0.58131592,120060.0,120050.0,0.1536194]
[1755034351073,1.73200002,120060.0,120050.0,0.1984194]
[1755034351379,1.61200002,120060.0,120050.0,0.1984194]
[1755034351672,1.73200002,120060.0,120050.0,0.1984194]
[1755034351873,1.61200002,120060.0,120050.0,0.1984194]
[1755034352072,1.71200002,120060.0,120050.0,0.1753894]
[1755034352267,1.71200002,120060.0,120050.0,0.1536194]
[1755034352468,1.7132365,120060.0,120050.0,0.1536194]
[1755034352665,1.7032365,120060.0,120050.0,0.1536194]
[1755034353276,1.7032365,120060.0,120050.0,0.1290394]
[1755034355170,0.5625524,120060.0,120050.0,0.1290394]
[1755034355364,1.20789445,120060.0,120050.0,0.1536194]
[1755034355578,0.5625524,120060.0,120050.0,0.1536194]
[1755034355770,1.7232365,120060.0,120050.0,0.1536194]
[1755034355972,1.7032365,120060.0,120050.0,0.1536194]
[1755034356170,1.18789445,120060.0,120050.0,0.1536194]
[1755034357082,0.6825524,120060.0,120050.0,0.1536194]
[1755034357275,1.7132365,120060.0,120050.0,0.1536194]
[1755034357478,0.6825524,120060.0,120050.0,0.1536194]
[1755034357778,0.6825524,120060.0,120050.0,0.1290394]
[1755034357980,1.7132365,120060.0,120050.0,0.1290394]
[1755034359778,1.7132365,120060.0,120050.0,0.1146494]
[1755034360272,1.7132365,120060.0,120050.0,0.0982894]
[1755034361372,2.5608765,120060.0,120050.0,0.0982894]
[1755034363076,0.0833025,120050.0,120040.0,0.36924761]
[1755034363378,1.00147055,120050.0,120040.0,0.0833091]
[1755034363573,1.36227055,120050.0,120040.0,0.09158304]
[1755034363772,1.36227055,120050.0,120040.0,0.0833091]
[1755034363974,1.36180646,120050.0,120040.0,0.0833091]
[1755034364674,1.30468859,120050.0,120040.0,0.0913091]
[1755034365380,1.30468859,120050.0,120040.0,0.09982271]
[1755034365575,1.30468859,120050.0,120040.0,0.0913091]
[1755034366478,0.84646441,120050.0,120040.0,0.0913091]
[1755034366684,1.84622297,120050.0,120030.0,0.2499427]
[1755034366984,1.81343438,120040.0,120030.0,0.2499427]
[1755034367180,1.99897919,120040.0,120030.0,0.2499427]
[1755034368683,1.99997919,120040.0,120030.0,0.2499427]
[1755034369687,2.00397919,120040.0,120030.0,0.2499427]
[1755034370284,0.75086501,120040.0,120030.0,0.2499427]
[1755034370485,1.20908919,120040.0,120030.0,0.3671327]
[1755034371382,1.22784326,120040.0,120030.0,0.3671327]
[1755034372786,2.07140326,120040.0,120030.0,0.3671327]
[1755034373188,2.07140326,120040.0,120030.0,0.2729727]
[1755034376879,2.07140326,120040.0,120030.0,0.2499427]
[1755034377791,1.61317908,120040.0,120030.0,0.2499427]
[1755034377989,2.07140326,120040.0,120030.0,0.2499427]
[1755034378490,1.61317908,120040.0,120030.0,0.2729727]
[1755034378685,2.07140326,120040.0,120030.0,0.2729727]
[1755034379189,1.61317908,120040.0,120030.0,0.2729727]
[1755034379690,2.07140326,120040.0,120030.0,0.2729727]
[1755034380592,1.61317908,120040.0,120030.0,0.2729727]
[1755034380888,2.07140326,120040.0,120030.0,0.2499427]
[1755034381487,2.07140326,120040.0,120030.0,0.2730027]
[1755034381687,0.75086501,120040.0,120030.0,0.3479427]
[1755034381886,1.20908919,120040.0,120030.0,0.2995727]
[1755034382090,1.20908919,120040.0,120030.0,0.2895827]
[1755034382091,0.75086501,120040.0,120030.0,0.2895827]
[1755034382395,1.20908919,120040.0,120030.0,0.2895827]
[1755034382594,1.20908919,120040.0,120030.0,0.2499427]
[1755034383286,0.2025858,120020.0,120010.0,0.09184864]
[1755034383493,1.97228998,120020.0,120010.0,0.0833328]
[1755034384689,1.5140658,120020.0,120010.0,0.0833328]
[1755034384995,1.97428998,120020.0,120010.0,0.0833328]
[1755034385298,1.99320527,120020.0,120010.0,0.0833328]
[1755034385600,1.51332527,120020.0,120010.0,0.0833328]
[1755034385784,1.51132527,120020.0,120010.0,0.0833328]
[1755034385984,1.51432527,120020.0,120010.0,0.0833328]
[1755034387304,1.7025935,120010.0,120000.0,0.2500185]
[1755034387497,3.47277768,120010.0,120000.0,0.2500185]
[1755034388108,3.0145535,120010.0,120000.0,0.2500185]
[1755034388306,3.47277768,120010.0,120000.0,0.2500185]
[1755034388504,3.47277768,120010.0,120000.0,0.2520185]
[1755034389210,3.47277768,120010.0,120000.0,0.2750785]
[1755034391212,3.0145535,120010.0,120000.0,0.2750785]
[1755034391413,3.47277768,120010.0,120000.0,0.2750785]
[1755034392310,1.97277768,120010.0,120000.0,0.2750785]
[1755034392712,1.97277768,120010.0,120000.0,0.168679]